fUST/lending_fUST_20250210
["ID","MTS","AMOUNT","RATE_DAILY","PERIOD"]
[352600921,1739189452847,-724.35,0.00013287,2]
[352600922,1739189452857,-802.4,0.00013287,2]
[352600923,1739189452867,-7417.1,0.00013287,2]
[352600924,1739189452876,-1489.04,0.00013287,2]
[352600925,1739189452887,-791.55,0.00013287,2]
[352600926,1739189452897,-813.92,0.00013287,2]
[352600927,1739189452906,-787.61,0.00013287,2]
[352600928,1739189452916,-606.85,0.00013287,2]
[352600929,1739189452927,-500.0,0.00013287,2]
[352600930,1739189452936,-256.15549849,0.00013324,2]
[352600931,1739189452946,-500.0,0.00013385,2]
[352600932,1739189452956,-151.0,0.00013423,2]
[352600933,1739189452965,-810.36,0.00013424,2]
[352600934,1739189452974,-512.43,0.00013424,2]
[352600935,1739189452983,-500.0,0.00013424,2]
[352600936,1739189452993,-151.0,0.00013424,2]
[352600937,1739189453002,-562.57,0.00013424,2]
[352600938,1739189453011,-516.48,0.00013424,2]
[352600939,1739189453021,-567.75,0.00013424,2]
[352600940,1739189453030,-151.0,0.00013424,2]
[352600941,1739189453039,-638.08822142,0.00013424,2]
[352600942,1739189453049,-486.31998487,0.00013424,2]
[352600943,1739189453059,-151.0,0.00013424,2]
[352600944,1739189453068,-151.0,0.00013424,2]
[352600945,1739189453078,-763.0,0.00013424,2]
[352600946,1739189453087,-500.0,0.00013424,2]
[352600947,1739189453097,-536.46,0.00013424,2]
[352600948,1739189453106,-1594.08,0.00013424,2]
[352600949,1739189453116,-531.01,0.00013424,2]
[352600950,1739189453126,-1871.76,0.00013424,2]
[352600951,1739189453135,-2807.91,0.00013424,2]
[352600952,1739189453145,-1308.92,0.00013424,2]
[352600953,1739189453155,-738.83,0.00013424,2]
[352600954,1739189453164,-1414.35,0.00013424,2]
[352600955,1739189453175,-500.0,0.00013424,2]
[352600956,1739189453184,-526.69,0.00013424,2]
[352600957,1739189453194,-6325.24,0.00013424,2]
[352600958,1739189453205,-500.0,0.00013424,2]
[352600959,1739189453215,-712.52,0.00013424,2]
[352600960,1739189453224,-15991.72,0.00013424,2]
[352600961,1739189453234,-500.0,0.00013424,2]
[352600962,1739189453244,-1064.4,0.00013424,2]
[352600963,1739189453254,-781.93,0.00013424,2]
[352600964,1739189453263,-655.56,0.00013424,2]
[352600965,1739189453273,-500.0,0.00013424,2]
[352600966,1739189453282,-1531.85,0.00013424,2]
[352600967,1739189453292,-806.14,0.00013424,2]
[352600968,1739189453301,-1191.34,0.00013424,2]
[352600969,1739189453311,-3275.8,0.00013424,2]
[352600970,1739189453321,-500.0,0.00013424,2]
[352600971,1739189453332,-724.35,0.00013424,2]
[352600972,1739189453342,-802.4,0.00013424,2]
[352600973,1739189453351,-7417.1,0.00013424,2]
[352600974,1739189453361,-1489.04,0.00013424,2]
[352600975,1739189453371,-791.55,0.00013424,2]
[352600976,1739189453381,-813.92,0.00013424,2]
[352600977,1739189453390,-787.61,0.00013424,2]
[352600978,1739189453400,-606.85,0.00013424,2]
[352600979,1739189453409,-500.0,0.00013424,2]
[352600980,1739189453418,-968.45770084,0.000135,2]
[352600981,1739189453429,-396.0,0.00013519,2]
[352600982,1739189453439,-322.88817285,0.00013529,2]
[352600983,1739189453448,-10058.67229835,0.0001356,2]
[352600984,1739189453458,-151.0,0.0001356,2]
[352600985,1739189453467,-151.0,0.0001356,2]
[352600986,1739189453477,-151.0,0.0001356,2]
[352600987,1739189453486,-342.045788,0.0001356,2]
[352600988,1739189453495,-342.045788,0.0001356,2]
[352600989,1739189453505,-151.0,0.0001356,2]
[352600990,1739189453515,-810.36,0.00013561,2]
[352600991,1739189453524,-512.43,0.00013561,2]
[352600992,1739189453536,-500.0,0.00013561,2]
[352600993,1739189453546,-562.57,0.00013561,2]
[352600994,1739189453555,-151.0,0.00013561,2]
[352600995,1739189453565,-183.9645,0.00013561,2]
[352600996,1739189453575,-151.0,0.00013561,2]
[352600997,1739189453584,-183.9645,0.00013561,2]
[352600998,1739189453594,-567.75,0.00013561,2]
[352600999,1739189453603,-151.0,0.00013561,2]
[352601000,1739189453615,-763.0,0.00013561,2]
[352601001,1739189453624,-500.0,0.00013561,2]
[352601002,1739189453634,-536.46,0.00013561,2]
[352601003,1739189453643,-1594.08,0.00013561,2]
[352601004,1739189453652,-531.01,0.00013561,2]
[352601005,1739189453663,-1871.76,0.00013561,2]
[352601006,1739189453672,-2807.91,0.00013561,2]
[352601007,1739189453682,-1308.92,0.00013561,2]
[352601008,1739189453691,-738.83,0.00013561,2]
[352601009,1739189453703,-1414.35,0.00013561,2]
[352601010,1739189453712,-500.0,0.00013561,2]
[352601011,1739189453722,-526.69,0.00013561,2]
[352601012,1739189453732,-6325.24,0.00013561,2]
[352601013,1739189453742,-500.0,0.00013561,2]
[352601014,1739189453753,-712.52,0.00013561,2]
[352601015,1739189453763,-15991.72,0.00013561,2]
[352601016,1739189453773,-500.0,0.00013561,2]
[352601017,1739189453783,-1064.4,0.00013561,2]
[352601018,1739189453794,-781.93,0.00013561,2]
[352601019,1739189453803,-655.56,0.00013561,2]
[352601020,1739189453813,-412.19,0.00013561,2]
[352601021,1739189453823,-1531.85,0.00013561,2]
[352601022,1739189453833,-806.14,0.00013561,2]
[352601023,1739189453843,-1191.34,0.00013561,2]
[352601024,1739189453853,-3275.8,0.00013561,2]
[352601025,1739189453862,-507.67,0.00013561,2]
[352601026,1739189453872,-724.35,0.00013561,2]
[352601027,1739189453882,-802.4,0.00013561,2]
[352601028,1739189453892,-7417.1,0.00013561,2]
[352601029,1739189453902,-1489.04,0.00013561,2]
[352601030,1739189453911,-791.55,0.00013561,2]
[352601031,1739189453921,-813.92,0.00013561,2]
[352601032,1739189453931,-787.61,0.00013561,2]
[352601033,1739189453940,-606.85,0.00013561,2]
[352601034,1739189453950,-212.93813587,0.00013561,2]
[352601035,1739189453960,-151.0,0.00013698,2]
[352601036,1739189453969,-151.0,0.00013698,2]
[352601037,1739189453979,-810.36,0.00013698,2]
[352601038,1739189453988,-512.43,0.00013698,2]
[352601039,1739189453998,-500.0,0.00013698,2]
[352601040,1739189454008,-562.57,0.00013698,2]
[352601041,1739189454018,-567.75,0.00013698,2]
[352601042,1739189454028,-763.0,0.00013698,2]
[352601043,1739189454037,-500.0,0.00013698,2]
[352601044,1739189454048,-536.46,0.00013698,2]
[352601045,1739189454058,-151.0,0.00013698,2]
[352601046,1739189454068,-1594.08,0.00013698,2]
[352601047,1739189454077,-531.01,0.00013698,2]
[352601048,1739189454086,-151.0,0.00013698,2]
[352601049,1739189454096,-1871.76,0.00013698,2]
[352601050,1739189454106,-2807.91,0.00013698,2]
[352601051,1739189454115,-1308.92,0.00013698,2]
[352601052,1739189454125,-500.0,0.00013698,3]
[352601053,1739189454134,-738.83,0.00013698,2]
[352601054,1739189454144,-1414.35,0.00013698,2]
[352601055,1739189454154,-230.519054,0.00013698,2]
[352601056,1739189454164,-500.0,0.00013698,2]
[352601057,1739189454174,-230.519054,0.00013698,2]
[352601058,1739189454183,-526.69,0.00013698,2]
[352601059,1739189454193,-6325.24,0.00013698,2]
[352601060,1739189454203,-500.0,0.00013698,2]
[352601061,1739189454214,-712.52,0.00013698,2]
[352601062,1739189454224,-15991.72,0.00013698,2]
[352601063,1739189454233,-441.36,0.00013698,2]
[352601064,1739189454243,-1064.4,0.00013698,2]
[352601065,1739189454253,-781.93,0.00013698,2]
[352601066,1739189454263,-151.0,0.00013698,2]
[352601067,1739189454273,-655.56,0.00013698,2]
[352601068,1739189454282,-151.938607,0.00013698,2]
[352601069,1739189454291,-1531.85,0.00013698,2]
[352601070,1739189454301,-806.14,0.00013698,2]
[352601071,1739189454311,-1191.34,0.00013698,2]
[352601072,1739189454321,-3275.8,0.00013698,2]
[352601073,1739189454332,-724.35,0.00013698,2]
[352601074,1739189454342,-802.4,0.00013698,2]
[352601075,1739189454352,-7417.1,0.00013698,2]
[352601076,1739189454361,-1489.04,0.00013698,2]
[352601077,1739189454371,-791.55,0.00013698,2]
[352601078,1739189454381,-813.92,0.00013698,2]
[352601079,1739189454390,-787.61,0.00013698,2]
[352601080,1739189454400,-233.142362,0.00013698,2]
[352601081,1739189454410,-606.85,0.00013698,2]
[352601082,1739189454419,-233.142362,0.00013698,2]
[352601083,1739189454429,-562.667168,0.00013699,2]
[352601084,1739189454437,-319.994948,0.00013699,2]
[352601085,1739189454447,-500.0,0.00013699,2]
[352601086,1739189454456,-500.0,0.00013699,2]
[352601087,1739189454466,-484.10245036,0.00013699,2]
[352601088,1739189454475,-500.0,0.00013699,2]
[352601089,1739189454485,-500.0,0.00013699,2]
[352601090,1739189454494,-500.0,0.00013699,2]
[352601091,1739189454503,-500.0,0.00013699,2]
[352601092,1739189454512,-500.0,0.00013699,2]
[352601093,1739189454522,-628.67045072,0.00013699,2]
[352601094,1739189454535,-500.0,0.00013699,2]
[352601095,1739189454547,-500.0,0.00013699,2]
[352601096,1739189454556,-500.0,0.00013699,2]
[352601097,1739189454567,-173.52748736,0.000137,2]
[352601098,1739189454577,-173.52,0.000137,2]
[352601099,1739189454586,-161.95898821,0.000137,2]
[352601100,1739189454595,-161.95898821,0.000137,2]
[352601101,1739189454604,-161.95898821,0.000137,2]
[352601102,1739189454614,-161.95898821,0.000137,2]
[352601103,1739189454624,-161.95,0.000137,2]
[352601104,1739189454633,-150.0,0.00013729,2]
[352601105,1739189454642,-253.194,0.00013729,2]
[352601106,1739189454652,-279.386,0.00013729,2]
[352601107,1739189454662,-204.58,0.00013733,2]
[352601108,1739189454693,-256.15549845,0.00013742,2]
[352601109,1739189454703,-150.532,0.00013797,2]
[352601110,1739189454711,-295.329,0.00013797,2]
[352601111,1739189454720,-2295.0,0.00013797,2]
[352601112,1739189454730,-151.0,0.00013835,2]
[352601113,1739189454739,-151.0,0.00013835,2]
[352601114,1739189454748,-151.481,0.00013835,2]
[352601115,1739189454757,-810.36,0.00013835,2]
[352601116,1739189454766,-512.43,0.00013835,2]
[352601117,1739189454776,-411.09,0.00013835,2]
[352601118,1739189454786,-562.57,0.00013835,2]
[352601119,1739189454796,-567.75,0.00013835,2]
[352601120,1739189454805,-763.0,0.00013835,2]
[352601121,1739189454814,-562.88,0.00013835,2]
[352601122,1739189454823,-536.46,0.00013835,2]
[352601123,1739189454832,-1594.08,0.00013835,2]
[352601124,1739189454841,-531.01,0.00013835,2]
[352601125,1739189454851,-1871.76,0.00013835,2]
[352601126,1739189454860,-2807.91,0.00013835,2]
[352601127,1739189454869,-1308.92,0.00013835,2]
[352601128,1739189454879,-738.83,0.00013835,2]
[352601129,1739189454888,-1414.35,0.00013835,2]
[352601130,1739189454897,-500.0,0.00013835,2]
[352601131,1739189454907,-526.69,0.00013835,2]
[352601132,1739189454916,-6325.24,0.00013835,2]
[352601133,1739189454926,-619.80743522,0.00013835,2]
[352601134,1739189454936,-712.52,0.00013835,2]
[352601135,1739189454945,-15991.72,0.00013835,2]
[352601136,1739189454956,-1064.4,0.00013835,2]
[352601137,1739189454970,-781.93,0.00013835,2]
[352601138,1739189454980,-655.56,0.00013835,2]
[352601139,1739189454989,-1531.85,0.00013835,2]
[352601140,1739189454998,-806.14,0.00013835,2]
[352601141,1739189455008,-1191.34,0.00013835,2]
[352601142,1739189455018,-3275.8,0.00013835,2]
[352601143,1739189455027,-724.35,0.00013835,2]
[352601144,1739189455037,-802.4,0.00013835,2]
[352601145,1739189455048,-7417.1,0.00013835,2]
[352601146,1739189455057,-1489.04,0.00013835,2]
[352601147,1739189455067,-791.55,0.00013835,2]
[352601148,1739189455076,-813.92,0.00013835,2]
[352601149,1739189455086,-787.61,0.00013835,2]
[352601150,1739189455096,-606.85,0.00013835,2]
[352601151,1739189455105,-7641.99737071,0.000139,2]
[352601152,1739189455115,-1627.43,0.000139,2]
[352601153,1739189455124,-780.446601,0.000139,2]
[352601154,1739189455134,-780.446601,0.000139,2]
[352601155,1739189455143,-155.5163702,0.00013918,2]
[352601156,1739189455153,-810.36,0.00013972,2]
[352601157,1739189455163,-512.43,0.00013972,2]
[352601158,1739189455173,-562.57,0.00013972,2]
[352601159,1739189455183,-567.75,0.00013972,2]
[352601160,1739189455192,-763.0,0.00013972,2]
[352601161,1739189455202,-536.46,0.00013972,2]
[352601162,1739189455211,-1594.08,0.00013972,2]
[352601163,1739189455221,-531.01,0.00013972,2]
[352601164,1739189455230,-1871.76,0.00013972,2]
[352601165,1739189455240,-1699.89837907,0.00013972,2]
[352601166,1739189455267,-1108.01162093,0.00013972,2]
[352601167,1739189455277,-552.55534836,0.00013972,2]
[352601168,1739189455460,-979.48,0.00011232,2]
[352601169,1739189455471,-979.48,0.00011369,2]
[352601170,1739189455480,-41.04089317,0.00011506,2]
[352601171,1739189613851,7078.0,0.00016,120]
[352601187,1739190335128,-412.1188463,9.558e-05,2]
[352601188,1739190335148,-101.93796011,9.561e-05,2]
[352601189,1739190433083,-297.27663771,9.465e-05,2]
[352601190,1739190436080,-1415.36990568,9.465e-05,2]
[352601192,1739190446099,-1209.47250115,9.465e-05,2]
[352601193,1739190446120,-4898.06203989,9.561e-05,2]
[352601194,1739190446140,-537.9351735,9.955e-05,2]
[352601195,1739190446163,-300.0,0.00010081,2]
[352601196,1739190446185,-103.79937082,0.00010082,2]
[352601197,1739190447124,-6107.49328828,0.00010082,2]
[352601198,1739190447145,-400.0,0.00010685,2]
[352601199,1739190447170,-2051.0,0.00010847,2]
[352601200,1739190447190,-3229.61462466,0.00010924,2]
[352601205,1739190547097,-476.11,9.968e-05,2]
[352601206,1739190547119,-2250.7988,0.00010068,2]
[352601230,1739190632519,-124.9551217,0.00010068,2]
[352601231,1739190632529,-1501.83132509,0.00010916,2]
[352601232,1739190632541,-3566.3878,0.00010916,2]
[352601233,1739190632645,-2370.47840769,0.00010916,2]
[352601234,1739190632655,-272.52131296,0.00010951,2]
[352601235,1739190632665,-300.0,0.00010957,2]
[352601236,1739190632675,-488.62187232,0.00010958,2]
[352601237,1739190632684,-500.0,0.00010958,2]
[352601238,1739190632693,-500.0,0.00010958,2]
[352601239,1739190632702,-500.0,0.00010958,2]
[352601240,1739190632711,-500.0,0.00010958,2]
[352601241,1739190632721,-500.0,0.00010958,2]
[352601242,1739190632730,-500.0,0.00010958,2]
[352601243,1739190632740,-500.0,0.00010958,2]
[352601244,1739190632749,-487.24118303,0.00010958,2]
[352601245,1739190632758,-500.0,0.00010958,2]
[352601246,1739190632768,-409.73114124,0.00010958,2]
[352601247,1739190632778,-500.0,0.00010958,2]
[352601248,1739190632787,-500.0,0.00010958,2]
[352601249,1739190632798,-454.23905826,0.00010958,2]
[352601250,1739190632807,-500.0,0.00010958,2]
[352601251,1739190632817,-500.0,0.00010958,2]
[352601252,1739190632826,-500.0,0.00010958,2]
[352601253,1739190632835,-500.0,0.00010958,2]
[352601254,1739190632844,-539.05970564,0.00010958,2]
[352601255,1739190632853,-500.0,0.00010958,2]
[352601256,1739190632862,-500.0,0.00010958,2]
[352601257,1739190632871,-500.0,0.00010958,2]
[352601258,1739190632879,-500.0,0.00010958,2]
[352601259,1739190632888,-201.77620619,0.00010958,2]
[352601260,1739190632897,-500.0,0.00010958,2]
[352601261,1739190632907,-500.0,0.00010958,2]
[352601262,1739190632916,-500.0,0.00010958,2]
[352601263,1739190632928,-500.0,0.00010958,2]
[352601264,1739190633050,-500.0,0.00010958,2]
[352601265,1739190633060,-500.0,0.00010958,2]
[352601266,1739190633071,-500.0,0.00010958,2]
[352601267,1739190633080,-500.0,0.00010958,2]
[352601268,1739190633090,-500.0,0.00010958,2]
[352601269,1739190633100,-500.0,0.00010958,2]
[352601270,1739190633110,-500.0,0.00010958,2]
[352601271,1739190633120,-298.84362855,0.00010958,2]
[352601272,1739190633130,-500.0,0.00010958,2]
[352601273,1739190633138,-500.0,0.00010958,2]
[352601274,1739190633148,-500.0,0.00010958,2]
[352601275,1739190633157,-500.0,0.00010958,2]
[352601276,1739190633168,-500.0,0.00010958,2]
[352601277,1739190633178,-500.0,0.00010958,2]
[352601278,1739190633188,-500.0,0.00010958,2]
[352601279,1739190633198,-377.04562486,0.00010958,2]
[352601280,1739190633209,-629.58710235,0.00010958,2]
[352601281,1739190633219,-500.0,0.00010958,2]
[352601282,1739190633229,-500.0,0.00010958,2]
[352601283,1739190633238,-500.0,0.00010958,2]
[352601284,1739190633247,-500.0,0.00010958,2]
[352601285,1739190633256,-500.0,0.00010958,2]
[352601286,1739190633264,-500.0,0.00010958,2]
[352601287,1739190633274,-500.0,0.00010958,2]
[352601288,1739190633282,-500.0,0.00010958,2]
[352601289,1739190633290,-500.0,0.00010958,2]
[352601290,1739190633300,-500.0,0.00010958,2]
[352601291,1739190633309,-500.0,0.00010958,2]
[352601292,1739190633317,-500.00000036,0.00010958,2]
[352601293,1739190633327,-500.0,0.00010958,2]
[352601294,1739190633336,-500.0,0.00010958,2]
[352601295,1739190633344,-500.0,0.00010958,2]
[352601296,1739190633354,-500.0,0.00010958,2]
[352601297,1739190633363,-500.0,0.00010958,2]
[352601298,1739190633378,-432.35824208,0.00010958,2]
[352601299,1739190633386,-500.0,0.00010958,2]
[352601300,1739190633394,-500.0,0.00010958,2]
[352601301,1739190633403,-500.0,0.00010958,2]
[352601302,1739190633413,-500.0,0.00010958,2]
[352601303,1739190633422,-500.0,0.00010958,2]
[352601304,1739190633432,-500.0,0.00010958,2]
[352601305,1739190633442,-105.3711346,0.00010958,2]
[352601310,1739190638313,-394.6288654,0.00010958,2]
[352601311,1739190638323,-500.0,0.00010958,2]
[352601312,1739190638333,-500.0,0.00010958,2]
[352601313,1739190638343,-500.0,0.00010958,2]
[352601314,1739190638352,-500.0,0.00010958,2]
[352601315,1739190638361,-500.0,0.00010958,2]
[352601316,1739190638371,-500.0,0.00010958,2]
[352601317,1739190638380,-500.0,0.00010958,2]
[352601318,1739190638390,-294.42050055,0.00010958,2]
[352601319,1739190638400,-500.0,0.00010958,2]
[352601320,1739190638410,-565.10430354,0.00010958,2]
[352601321,1739190638419,-500.0,0.00010958,2]
[352601322,1739190638428,-500.0,0.00010958,2]
[352601323,1739190638438,-340.17337902,0.00010958,2]
[352601324,1739190638447,-500.0,0.00010958,2]
[352601325,1739190638457,-500.0,0.00010958,2]
[352601326,1739190638466,-500.0,0.00010958,2]
[352601327,1739190638476,-500.0,0.00010958,2]
[352601328,1739190638486,-500.0,0.00010958,2]
[352601329,1739190638495,-430.38540521,0.00010958,2]
[352601330,1739190638505,-500.0,0.00010958,2]
[352601331,1739190638514,-500.0,0.00010958,2]
[352601332,1739190638523,-402.20038051,0.00010958,2]
[352601333,1739190638533,-500.0,0.00010958,2]
[352601334,1739190638546,-500.0,0.00010958,2]
[352601335,1739190638556,-500.0,0.00010958,2]
[352601336,1739190638566,-500.0,0.00010958,2]
[352601337,1739190638575,-500.0,0.00010958,2]
[352601338,1739190638585,-500.0,0.00010958,2]
[352601339,1739190638594,-500.0,0.00010958,2]
[352601340,1739190638604,-500.0,0.00010958,2]
[352601341,1739190638613,-500.0,0.00010958,2]
[352601342,1739190638623,-500.0,0.00010958,2]
[352601343,1739190638632,-500.0,0.00010958,2]
[352601345,1739190638642,-272.38748574,0.00010958,2]
[352601347,1739190638652,-500.0,0.00010958,2]
[352601348,1739190638662,-500.0,0.00010958,2]
[352601349,1739190638672,-500.0,0.00010958,2]
[352601350,1739190638682,-500.0,0.00010958,2]
[352601351,1739190638692,-500.0,0.00010958,2]
[352601352,1739190638702,-500.0,0.00010958,2]
[352601353,1739190638713,-500.0,0.00010958,2]
[352601354,1739190638723,-500.0,0.00010958,2]
[352601355,1739190638732,-500.0,0.00010958,2]
[352601356,1739190638742,-500.0,0.00010958,2]
[352601357,1739190638751,-500.0,0.00010958,2]
[352601358,1739190638761,-500.0,0.00010958,2]
[352601359,1739190638770,-500.0,0.00010958,2]
[352601360,1739190638781,-501.35194165,0.00010958,2]
[352601361,1739190638792,-500.0,0.00010958,2]
[352601362,1739190638804,-500.0,0.00010958,2]
[352601363,1739190638814,-500.0,0.00010958,2]
[352601364,1739190638823,-500.0,0.00010958,2]
[352601365,1739190638833,-500.0,0.00010958,2]
[352601366,1739190638843,-500.0,0.00010958,2]
[352601367,1739190638852,-500.0,0.00010958,2]
[352601368,1739190638861,-500.0,0.00010958,2]
[352601369,1739190638871,-500.0,0.00010958,2]
[352601370,1739190638880,-500.0,0.00010958,2]
[352601371,1739190638889,-500.0,0.00010958,2]
[352601372,1739190638899,-1018.0,0.00010958,2]
[352601373,1739190638908,-500.0,0.00010958,2]
[352601374,1739190638918,-500.0,0.00010958,2]
[352601375,1739190638927,-500.0,0.00010958,2]
[352601376,1739190638941,-500.0,0.00010958,2]
[352601377,1739190638950,-500.0,0.00010958,2]
[352601378,1739190638960,-500.0,0.00010958,2]
[352601379,1739190638969,-500.0,0.00010958,2]
[352601380,1739190638979,-500.0,0.00010958,2]
[352601381,1739190638989,-500.0,0.00010958,2]
[352601382,1739190638998,-500.0,0.00010958,2]
[352601383,1739190639007,-500.0,0.00010958,2]
[352601384,1739190639021,-500.0,0.00010958,2]
[352601385,1739190639033,-500.0,0.00010958,2]
[352601386,1739190639048,-500.0,0.00010958,2]
[352601387,1739190639060,-500.0,0.00010958,2]
[352601388,1739190639072,-500.0,0.00010958,2]
[352601389,1739190639082,-500.0,0.00010958,2]
[352601390,1739190639092,-457.10840547,0.00010958,2]
[352601391,1739190639102,-791.03,0.00010958,2]
[352601392,1739190639113,-500.0,0.00010958,2]
[352601393,1739190639123,-500.0,0.00010958,2]
[352601394,1739190639134,-655.91,0.00010958,2]
[352601395,1739190639146,-500.0,0.00010958,2]
[352601396,1739190639157,-1466.24,0.00010958,2]
[352601397,1739190639168,-500.0,0.00010958,2]
[352601398,1739190639180,-500.0,0.00010958,2]
[352601399,1739190639191,-500.0,0.00010958,2]
[352601400,1739190639202,-500.0,0.00010958,2]
[352601401,1739190639213,-500.0,0.00010958,2]
[352601402,1739190639224,-500.0,0.00010958,2]
[352601403,1739190639235,-500.0,0.00010958,2]
[352601404,1739190639246,-500.0,0.00010958,2]
[352601405,1739190639258,-500.0,0.00010958,2]
[352601406,1739190639268,-500.0,0.00010958,2]
[352601407,1739190639279,-500.0,0.00010958,2]
[352601408,1739190639292,-2966.37,0.00010958,2]
[352601409,1739190639308,-500.0,0.00010958,2]
[352601410,1739190639319,-500.0,0.00010958,2]
[352601411,1739190639332,-229.5921136,0.00010958,2]
[352601412,1739190639344,-500.0,0.00010958,2]
[352601413,1739190639358,-500.0,0.00010958,2]
[352601414,1739190639369,-500.0,0.00010958,2]
[352601415,1739190639385,-8273.5,0.00010958,2]
[352601416,1739190639396,-500.0,0.00010958,2]
[352601417,1739190639406,-801.48,0.00010958,2]
[352601418,1739190639416,-500.0,0.00010958,2]
[352601419,1739190639427,-500.0,0.00010958,2]
[352601420,1739190639438,-500.0,0.00010958,2]
[352601421,1739190639448,-640.28,0.00010958,2]
[352601422,1739190639460,-500.0,0.00010958,2]
[352601423,1739190639471,-500.0,0.00010958,2]
[352601424,1739190639482,-500.0,0.00010958,2]
[352601425,1739190639493,-500.0,0.00010958,2]
[352601426,1739190639504,-500.0,0.00010958,2]
[352601427,1739190639515,-500.0,0.00010958,2]
[352601428,1739190639526,-500.0,0.00010958,2]
[352601429,1739190639537,-500.0,0.00010958,2]
[352601430,1739190639551,-721.29,0.00010958,2]
[352601431,1739190639563,-500.0,0.00010958,2]
[352601432,1739190639575,-500.0,0.00010958,2]
[352601433,1739190639587,-500.0,0.00010958,2]
[352601434,1739190639599,-746.01,0.00010958,2]
[352601435,1739190639609,-500.0,0.00010958,2]
[352601436,1739190639619,-1385.1,0.00010958,2]
[352601437,1739190639630,-500.0,0.00010958,2]
[352601438,1739190639641,-500.0,0.00010958,2]
[352601439,1739190639651,-500.0,0.00010958,2]
[352601440,1739190639661,-500.0,0.00010958,2]
[352601441,1739190639672,-500.0,0.00010958,2]
[352601442,1739190639683,-500.0,0.00010958,2]
[352601443,1739190639696,-500.0,0.00010958,2]
[352601444,1739190639706,-500.0,0.00010958,2]
[352601445,1739190639718,-500.0,0.00010958,2]
[352601446,1739190639727,-500.0,0.00010958,2]
[352601447,1739190639737,-500.0,0.00010958,2]
[352601449,1739190639747,-500.0,0.00010958,2]
[352601451,1739190639758,-500.0,0.00010958,2]
[352601453,1739190639768,-558.39,0.00010958,2]
[352601455,1739190639779,-599.64504481,0.00010958,2]
[352601457,1739190639790,-3435.23,0.00010958,2]
[352601460,1739190639803,-500.0,0.00010958,2]
[352601461,1739190639813,-500.0,0.00010958,2]
[352601462,1739190639823,-500.0,0.00010958,2]
[352601463,1739190639837,-500.0,0.00010958,2]
[352601464,1739190639848,-500.0,0.00010958,2]
[352601465,1739190639858,-500.0,0.00010958,2]
[352601466,1739190639869,-500.0,0.00010958,2]
[352601467,1739190639879,-500.0,0.00010958,2]
[352601468,1739190639889,-903.63,0.00010958,2]
[352601469,1739190639899,-501.23592644,0.00010958,2]
[352601470,1739190639910,-500.0,0.00010958,2]
[352601471,1739190639923,-500.0,0.00010958,2]
[352601472,1739190639933,-233.31,0.00010959,2]
[352601473,1739190639943,-500.39810013,0.00011095,2]
[352601474,1739190639954,-500.0,0.00011095,2]
[352601475,1739190639965,-500.0,0.00011095,2]
[352601476,1739190639976,-500.0,0.00011095,2]